bitfinex-derivatives/quotes_SOLF0:USTF0_20251107
["timestamp","ask_amount","ask_price","bid_price","bid_amount"]
[1762518531717,9.0502782,151.99,151.92,5.927]
[1762518531912,9.99988833,151.98,151.92,5.927]
[1762518532118,13.03988833,151.97,151.92,5.927]
[1762518532317,9.99988833,151.96,151.9,3.12]
[1762518532517,3.04,151.97,151.9,3.12]
[1762518532817,6.0102782,151.99,151.94,3.12]
[1762518532818,0.04422832,151.95,151.94,3.12]
[1762518533726,0.04422832,151.95,151.92,3.16588195]
[1762518534021,3.08422832,151.95,151.92,0.04588195]
[1762518534726,4.85061087,151.94,151.92,0.04588195]
[1762518534919,3.08422832,151.95,151.92,0.04588195]
[1762518535124,4.85065501,151.94,151.92,0.04588195]
[1762518535324,3.08422832,151.95,151.92,0.04588195]
[1762518535526,7.89055075,151.94,151.92,0.04588195]
[1762518535726,7.89055075,151.93,151.86,3.12]
[1762518535926,4.85055075,151.92,151.86,3.12]
[1762518536127,3.04,151.9,151.84,73.7103]
[1762518536331,3.04,151.9,151.82,8.26680854]
[1762518536826,0.04599451,151.88,151.85,0.02466451]
[1762518538029,3.08599451,151.88,151.85,0.02466451]
[1762518538631,0.04599451,151.88,151.85,0.02466451]
[1762518538826,0.04599451,151.88,151.86,5.9295]
[1762518539125,0.04599451,151.88,151.87,3.12]
[1762518539325,3.08599451,151.88,151.85,0.02466451]
[1762518539525,0.04599451,151.88,151.85,3.14466451]
[1762518539923,0.04599451,151.88,151.86,9.0493]
[1762518540532,0.04599451,151.88,151.85,0.02466451]
[1762518541131,3.08599451,151.88,151.85,0.02466451]
[1762518541321,0.04599451,151.88,151.85,3.14466451]
[1762518541521,0.04599451,151.88,151.86,5.9295]
[1762518541734,0.04599451,151.88,151.87,3.12]
[1762518542625,9.0502782,151.97,151.88,3.12]
[1762518542832,13.06165744,151.96,151.88,3.12]
[1762518543126,7.91693718,152.0,151.88,3.12]
[1762518543127,3.04,151.94,151.88,3.12]
[1762518543331,4.85875639,151.93,151.88,3.12]
[1762518543529,3.04,151.94,151.88,3.12]
[1762518543728,0.04600068,151.92,151.89,3.1642092]
[1762518544125,0.04600068,151.92,151.91,5.9277]
[1762518544425,0.04600068,151.92,151.91,9.0477]
[1762518544628,0.04600068,151.92,151.91,5.9277]
[1762518545230,0.04600068,151.92,151.89,3.1642092]
[1762518545928,0.04600068,151.92,151.9,5.9279]
[1762518546533,0.04600068,151.92,151.89,3.1642092]
[1762518547037,0.04600068,151.92,151.91,3.12]
[1762518547434,0.04600068,151.92,151.9,5.9279]
[1762518547730,0.04600068,151.92,151.91,3.12]
[1762518549327,0.04600068,151.92,151.89,0.0442092]
[1762518549528,3.08600068,151.92,151.89,0.0442092]
[1762518549825,0.04600068,151.92,151.89,5.9725092]
[1762518550529,0.04600068,151.92,151.89,0.0442092]
[1762518550929,3.08600068,151.92,151.89,0.0442092]
[1762518552234,3.04,151.9,151.81,3.12]
[1762518552440,3.04,151.88,151.81,3.12]
[1762518552735,8.969,151.88,151.81,3.12]
[1762518553329,0.04182603,151.86,151.83,0.02644982]
[1762518553738,0.04182603,151.86,151.83,3.14644982]
[1762518553940,0.04182603,151.86,151.84,9.0502]
[1762518554833,0.04182603,151.86,151.85,3.12]
[1762518556131,0.04182603,151.86,151.85,4.44]
[1762518556331,4.93861274,151.92,151.86,3.12]
[1762518556635,3.26,151.96,151.88,8.26680854]
[1762518556937,3.26,151.96,151.92,5.9272]
[1762518557139,3.26,151.96,151.88,3.12]
[1762518557340,0.04313697,151.94,151.9,0.04305698]
[1762518557534,3.30313697,151.94,151.9,3.16305698]
[1762518558034,0.04313697,151.94,151.9,3.16305698]
[1762518558534,0.04313697,151.94,151.91,3.12]
[1762518558740,3.30313697,151.94,151.9,0.04305698]
[1762518558930,0.04313697,151.94,151.9,3.16305698]
[1762518559130,0.04313697,151.94,151.91,5.9276]
[1762518560035,0.04313697,151.94,151.92,9.0472]
[1762518560640,0.04313697,151.94,151.92,5.9272]
[1762518560942,0.04313697,151.94,151.9,0.04305698]
[1762518561142,0.04313697,151.94,151.9,3.16305698]
[1762518561441,0.04313697,151.94,151.92,5.9272]
[1762518561940,0.04313697,151.94,151.93,3.12]
[1762518562145,0.04313697,151.94,151.91,3.12]
[1762518562740,0.04313697,151.94,151.9,3.16305698]
[1762518562941,3.30313697,151.94,151.9,3.16305698]
[1762518563136,0.04313697,151.94,151.92,5.9272]
[1762518563846,0.04313697,151.94,151.9,3.16305698]
[1762518565643,0.04313697,151.94,151.92,9.0472]
[1762518565944,0.04313697,151.94,151.93,3.12]
[1762518567547,0.04313697,151.94,151.92,5.9272]
[1762518567548,0.04313697,151.94,151.92,9.0472]
[1762518568946,0.04313697,151.94,151.92,5.9272]
[1762518569147,0.04313697,151.94,151.93,3.12]
[1762518569953,0.04313697,151.94,151.92,3.12]
[1762518570453,0.04313697,151.94,151.92,9.047]
[1762518572753,0.04313697,151.94,151.93,3.12]
[1762518574258,3.26,151.99,151.95,3.12]
[1762518574445,4.89266674,151.98,151.95,3.12]
[1762518574647,3.26,152.02,151.97,5.9252]
[1762518574848,8.15406256,152.01,151.97,5.9252]
[1762518575156,4.89406256,152.0,151.97,5.97276346]
[1762518575356,4.89406256,151.99,151.97,5.97276346]
[1762518575549,3.30438614,152.01,151.97,5.97276346]
[1762518575848,3.26,151.99,151.97,0.04756346]
[1762518576053,7.99460225,151.98,151.97,0.04756346]
[1762518577749,3.26,152.0,151.97,0.04756346]
[1762518577949,4.73630624,151.99,151.97,0.04756346]
[1762518578250,3.30438614,152.01,151.97,0.04756346]
[1762518578450,4.73625845,152.0,151.98,3.12]
[1762518578661,0.04438614,152.01,151.98,3.12]
[1762518578853,4.73677799,152.0,151.97,0.04756346]
[1762518579158,3.30438614,152.01,151.97,9.09256346]
[1762518580045,0.04438614,152.01,151.97,0.04756346]
[1762518580254,0.04438614,152.01,151.98,3.1]
[1762518581147,0.04438614,152.01,151.98,9.0248]
[1762518581956,0.04438614,152.01,151.99,5.9244]
[1762518582748,0.04438614,152.01,151.98,3.1]
[1762518582954,3.14438614,152.01,151.97,0.04756346]
[1762518583153,3.1,151.99,151.97,0.04756346]
[1762518584459,7.81758466,151.98,151.9,66.18]
[1762518584758,4.72758466,151.97,151.9,66.18]
[1762518585061,3.09,151.98,151.93,5.9268]
[1762518585259,7.81811102,151.97,151.93,5.9268]
[1762518585457,7.81811102,151.96,151.93,0.04530457]
[1762518585656,8.01624598,151.95,151.93,0.04530457]
[1762518585858,8.01552449,151.94,151.93,0.04530457]
[1762518587058,4.92552449,151.94,151.93,0.04530457]
[1762518588156,8.01552449,151.94,151.93,0.04530457]
[1762518591558,4.92552449,151.94,151.93,0.04530457]
[1762518591754,4.92552449,151.94,151.93,3.16530457]
[1762518591953,0.04573404,151.97,151.94,3.12]
[1762518592157,0.04573404,151.97,151.96,5.9257]
[1762518592357,0.04573404,151.97,151.96,8.9657]
[1762518592551,3.09,152.01,151.96,3.04]
[1762518592758,3.25,152.05,151.99,5.9243]
[1762518592967,3.25,152.05,151.97,3.04]
[1762518593461,3.25,152.05,151.95,5.14680854]
[1762518593662,0.04802815,152.02,151.98,3.08481739]
[1762518594163,0.04802815,152.02,151.98,9.00951739]
[1762518594363,3.29802815,152.02,151.98,3.08481739]
[1762518595166,3.29802815,152.02,151.98,0.04481739]
[1762518595465,3.29802815,152.02,151.98,3.08481739]
[1762518596365,3.29802815,152.02,151.98,0.04481739]
[1762518596859,3.25,152.0,151.98,0.04481739]
[1762518599458,9.1744,152.0,151.98,0.04481739]
[1762518599666,3.25,151.99,151.98,0.04481739]
[1762518600260,4.57,151.99,151.9,8.75522147]
[1762518600460,3.25,151.98,151.89,3.04]
[1762518600663,3.25,151.97,151.89,3.04]
[1762518601567,3.25,151.94,151.82,3.04]
[1762518601768,3.25,151.91,151.82,3.04]
[1762518602070,5.14593517,151.93,151.8,290.7158013]
[1762518602071,3.25,151.89,151.8,8.75522147]
[1762518602258,3.25,151.88,151.8,8.75522147]
[1762518602566,6.07255934,151.93,151.78,4.18601857]
[1762518602567,3.25,151.86,151.78,3.04]
[1762518602768,3.25,151.86,151.74,3.04]
[1762518602769,3.25,151.84,151.74,3.04]
[1762518602971,3.3001995,151.81,151.7,11.79522147]
[1762518603271,3.29758638,151.77,151.69,4.18645275]
[1762518603468,0.04192537,151.75,151.7,3.04]
[1762518603661,3.29192537,151.75,151.7,3.04]
[1762518604177,0.04192537,151.75,151.7,3.04]
[1762518604968,3.29192537,151.75,151.69,1.14645275]
[1762518605364,3.29192537,151.75,151.68,5.9365]
[1762518605867,0.04192537,151.75,151.71,3.04]
[1762518606171,3.29192537,151.75,151.66,4.18688726]
[1762518606466,3.29192537,151.75,151.67,3.04]
[1762518606774,0.04949596,151.73,151.67,3.04]
[1762518607368,0.04949596,151.73,151.7,3.04]
[1762518607565,3.25,151.79,151.71,8.9751]
[1762518607779,3.25,151.79,151.69,8.75522147]
[1762518608168,3.25,151.79,151.69,14.69152147]
[1762518608568,3.25,151.75,151.72,0.04473608]
[1762518609568,0.0493411,151.76,151.72,0.04473608]
[1762518609769,0.0493411,151.76,151.72,3.08473608]
[1762518610270,3.2993411,151.76,151.72,0.04473608]
[1762518610672,0.0493411,151.76,151.72,3.08473608]
[1762518611075,0.0493411,151.76,151.72,9.01953608]
[1762518611372,0.0493411,151.76,151.72,3.08473608]
[1762518611575,3.25,151.84,151.75,3.04]
[1762518611779,3.25,151.84,151.71,3.04]
[1762518611965,13.83527964,151.89,151.71,3.04]
[1762518611966,3.25,151.82,151.71,3.04]
[1762518612173,3.25,151.82,151.72,5.9348]
[1762518612370,8.75522147,151.89,151.71,3.04]
[1762518612371,3.25,151.8,151.71,3.04]
[1762518612676,0.04427772,151.77,151.74,3.08842009]
[1762518613182,0.04427772,151.77,151.75,5.9339]
[1762518613976,0.04427772,151.77,151.75,8.9739]
[1762518614575,0.04427772,151.77,151.74,3.10842009]
[1762518614879,0.04427772,151.77,151.74,9.04252009]
[1762518615680,0.04427772,151.77,151.74,3.10842009]
[1762518616370,0.04427772,151.77,151.75,5.9337]
[1762518616679,0.04427772,151.77,151.76,3.06]
[1762518616982,3.0,151.85,151.76,3.06]
[1762518617574,3.0,151.9,151.75,3.06]
[1762518617978,3.0,151.83,151.81,0.05002123]
[1762518618188,3.0,151.83,151.8,0.04333206]
[1762518618372,3.04887412,151.83,151.8,0.04333206]
[1762518619574,0.04887412,151.83,151.8,3.10333206]
[1762518620282,0.04887412,151.83,151.81,5.9317]
[1762518620880,0.04887412,151.83,151.8,0.04333206]
[1762518621380,3.04887412,151.83,151.8,5.97573206]
[1762518621780,3.04887412,151.83,151.8,0.04333206]
[1762518624376,0.04887412,151.83,151.8,3.10333206]
[1762518624576,0.04887412,151.83,151.81,5.9319]
[1762518624776,0.04887412,151.83,151.8,0.04333206]
[1762518624978,3.04887412,151.83,151.8,0.04333206]
[1762518625978,3.0,151.82,151.8,0.04333206]
[1762518626380,3.0,151.81,151.73,3.06]
[1762518626882,3.0,151.81,151.71,3.06]
[1762518627478,3.0,151.77,151.74,0.04733753]
[1762518627680,3.0,151.77,151.74,0.04153747]
[1762518630383,3.0,151.75,151.64,4.20679277]
[1762518630582,3.0,151.75,151.65,3.06]
[1762518631388,3.0,151.71,151.68,0.04183532]
[1762518631589,3.0415888,151.71,151.68,0.04996932]
[1762518632678,0.0415888,151.71,151.68,5.98746932]
[1762518632875,3.0415888,151.71,151.68,5.98746932]
[1762518633084,3.0415888,151.71,151.68,0.04996932]
[1762518634087,8.88e-05,151.71,151.68,0.04996932]
[1762518634588,5.05090795,151.76,151.6,3.06]
[1762518634589,6.07255934,151.74,151.6,3.06]
[1762518634786,5.05090795,151.73,151.6,3.06]
[1762518634980,10.98790795,151.72,151.6,3.06]
[1762518635275,5.05090795,151.73,151.6,3.06]
[1762518635478,0.04159056,151.68,151.65,0.04778366]
[1762518635677,0.04159056,151.68,151.61,3.06]
[1762518635678,5.05090795,151.74,151.61,3.06]
[1762518635883,0.04644777,151.68,151.65,0.04160046]
[1762518636081,3.0,151.67,151.65,0.04798564]
[1762518637386,0.04976452,151.68,151.65,4.42798564]
[1762518637588,5.03035557,151.76,151.67,3.06]
[1762518637786,3.0,151.77,151.67,3.06]
[1762518638487,6.07255934,151.81,151.67,3.06]
[1762518638690,0.0436265,151.74,151.7,0.04885463]
[1762518638901,0.0436265,151.74,151.7,0.04903165]
[1762518639585,0.0436265,151.74,151.61,3.28]
[1762518639890,5.9388,151.72,151.61,3.28]
[1762518640194,6.07255934,151.71,151.59,22.65994618]
[1762518640383,3.26,151.7,151.59,22.65994618]
[1762518640592,0.04708746,151.66,151.63,0.04375324]
[1762518641593,3.30708746,151.66,151.63,0.04375324]
[1762518642292,0.04708746,151.66,151.63,3.32375324]
[1762518642486,0.04708746,151.66,151.63,0.04375324]
[1762518642688,3.30708746,151.66,151.65,5.9428]
[1762518642884,0.04708746,151.66,151.63,3.32375324]
[1762518643084,0.04708746,151.66,151.64,5.9433]
[1762518643280,0.04708746,151.66,151.64,9.2233]
[1762518643482,0.04708746,151.66,151.64,3.28]
[1762518643693,0.04708746,151.66,151.63,0.04375324]
[1762518644392,0.04708746,151.66,151.63,3.28375324]
[1762518644580,0.04708746,151.66,151.63,0.04375324]
[1762518644783,0.04708746,151.66,151.63,3.28375324]
[1762518645289,0.04708746,151.66,151.64,9.1826]
[1762518645793,0.04708746,151.66,151.63,0.04375324]
[1762518645993,4.68e-05,151.68,151.63,0.04375324]
[1762518646288,7.91693718,151.69,151.63,0.04375324]
[1762518646494,7.91693718,151.71,151.63,0.04375324]
[1762518646692,7.91693718,151.69,151.59,3.24]
[1762518646986,7.91693718,151.68,151.59,3.24]
[1762518647189,0.04177926,151.65,151.62,0.04334253]
[1762518647983,0.04177926,151.65,151.62,3.28334253]
[1762518648189,1.06,151.72,151.63,3.24]
[1762518648393,7.91693718,151.73,151.64,3.24]
[1762518648691,1.06,151.73,151.64,3.24]
[1762518649291,0.04643657,151.7,151.67,3.28493271]
[1762518649994,0.04643657,151.7,151.69,3.24]
[1762518650190,0.04643657,151.7,151.67,0.04493271]
[1762518650384,0.04643657,151.7,151.67,3.28493271]
[1762518651384,6.0807543,151.69,151.67,0.04493271]
[1762518651586,6.08061714,151.68,151.59,3.24]
[1762518651789,7.91693718,151.72,151.59,3.24]
[1762518651790,6.08061714,151.67,151.59,3.24]
[1762518651993,5.02061714,151.66,151.59,3.24]
[1762518652192,5.02061714,151.65,151.59,3.24]
[1762518652396,5.02061714,151.64,151.59,3.24]
[1762518652601,5.02061714,151.63,151.59,3.24]
[1762518652799,0.04552292,151.63,151.59,3.29054293]
[1762518653703,0.04552292,151.63,151.59,9.23434293]
[1762518653899,5.01172266,151.62,151.59,5.99434293]
[1762518654097,1.10552292,151.63,151.59,5.99434293]
[1762518654401,0.04552292,151.63,151.59,3.29054293]
[1762518654798,1.10552292,151.63,151.59,0.05054293]
[1762518655095,0.04552292,151.63,151.59,3.29054293]
[1762518655498,0.04552292,151.63,151.6,5.9434]
[1762518655900,0.04552292,151.63,151.59,3.29054293]
[1762518657703,1.10552292,151.63,151.59,0.05054293]
[1762518658496,0.04552292,151.63,151.59,3.29054293]
[1762518659200,1.10552292,151.63,151.59,0.05054293]
[1762518659403,1.10552292,151.63,151.59,3.29054293]
[1762518659601,0.04552292,151.63,151.59,3.29054293]
[1762518660299,5.00495692,151.7,151.59,3.29054293]
[1762518660496,6.06495692,151.72,151.59,3.24]
[1762518660695,1.11,151.71,151.64,9.1798]
[1762518660896,5.00495692,151.7,151.58,3.24]
[1762518661098,1.11,151.68,151.58,3.24]
[1762518661295,1.11,151.68,151.61,9.22381002]
[1762518661296,0.05049666,151.65,151.61,9.22381002]
[1762518661496,0.05049666,151.65,151.62,3.24]
[1762518661702,5.00495692,151.74,151.66,5.9389]
[1762518661899,6.16495692,151.75,151.66,3.24]
[1762518662100,1.16,151.74,151.66,3.24]
[1762518662304,1.16,151.72,151.64,9.1799]
[1762518662608,1.16,151.72,151.64,3.24]
[1762518662901,28.08450536,151.91,151.59,67.17052797]
[1762518662902,0.04249965,151.7,151.66,3.28998156]
[1762518663108,0.04883561,151.7,151.66,3.28205916]
[1762518663504,1.20883561,151.7,151.66,0.04205916]
[1762518663698,0.04883561,151.7,151.66,3.28205916]
[1762518664696,5.00495692,151.77,151.7,3.24]
[1762518664906,5.00495692,151.79,151.7,3.24]
[1762518665111,5.00495692,151.81,151.7,3.24]
[1762518665298,1.2,151.82,151.75,5.9355]
[1762518665501,1.2,151.82,151.75,9.1755]
[1762518665710,0.04352152,151.8,151.77,3.28511386]
[1762518665909,293.12798524,151.92,151.72,5.17052797]
[1762518665910,1.24,151.87,151.79,3.24]
[1762518666205,6.24495692,151.87,151.79,3.24]
[1762518666404,6.24495692,151.91,151.8,3.24]
[1762518666605,5.00495692,151.9,151.8,3.24]
[1762518666810,5.00495692,151.9,151.83,0.04933654]
[1762518667111,1.28524583,151.87,151.83,0.04933654]
[1762518667298,1.24,151.85,151.83,0.04933654]
[1762518667616,1.24,151.84,151.75,3.24]
[1762518667909,5.00495692,151.85,151.7,14.54]
[1762518667910,1.24,151.82,151.71,3.24]
[1762518668103,5.00495692,151.81,151.71,3.24]
[1762518668302,5.00495692,151.82,151.71,3.24]
[1762518668511,0.04973831,151.78,151.75,0.04172635]
[1762518668804,1.28815494,151.78,151.75,0.04198729]
[1762518669498,0.04815494,151.78,151.75,3.28198729]
[1762518670106,5.00495692,151.85,151.75,3.28198729]
[1762518670307,5.00495692,151.84,151.76,3.24]
[1762518670513,5.00495692,151.86,151.76,3.24]
[1762518670713,5.00495692,151.85,151.76,3.24]
[1762518670909,5.00495692,151.84,151.76,3.24]
[1762518671109,5.00495692,151.85,151.76,3.24]
[1762518671305,0.04652598,151.82,151.78,3.28995136]
[1762518671505,1.28652598,151.82,151.78,0.04995136]
[1762518671708,6.26033093,151.81,151.78,0.04995136]
[1762518672012,1.24,151.8,151.78,0.04995136]
[1762518672309,1.24,151.8,151.7,3.24]
[1762518672310,5.02213038,151.79,151.7,3.24]
[1762518672513,5.02213038,151.78,151.7,3.24]
[1762518672706,0.00796756,151.83,151.7,3.24]
[1762518673011,5.01926353,151.82,151.7,3.24]
[1762518673311,2.98,151.72,151.57,5.17052797]
[1762518673512,2.98,151.72,151.63,0.04392197]
[1762518673513,0.04464985,151.66,151.63,0.04392197]
[1762518674811,4.985e-05,151.74,151.63,3.15392197]
[1762518675012,11.60628623,151.82,151.71,3.11]
[1762518675204,11.60628623,151.88,151.72,3.11]
[1762518675406,1.46238623,151.88,151.72,3.11]
[1762518675602,230.11285829,151.92,151.72,3.11]
[1762518675802,0.04681428,151.84,151.8,0.04722393]
[1762518676107,92.3127,151.88,151.71,5.17052797]
[1762518676308,21.21881674,151.88,151.68,3.11]
[1762518676504,21.21881674,151.84,151.64,3.11]
[1762518676705,34.30828877,151.83,151.64,3.11]
[1762518676907,0.26,151.78,151.64,3.11]
[1762518677112,5.9378,151.7,151.6,5.17052797]
[1762518677411,0.26,151.72,151.6,8.28052797]
[1762518677606,16.04828877,151.79,151.6,8.28052797]
[1762518677607,0.04769868,151.68,151.64,0.05041269]
[1762518677809,0.04912468,151.68,151.64,0.0432433]
[1762518678007,0.04912468,151.68,151.64,3.1532433]
[1762518678603,0.04912468,151.68,151.65,5.9393]
[1762518678808,0.26,151.77,151.66,8.28052797]
[1762518679116,0.26,151.77,151.67,3.11]
[1762518679316,0.26,151.84,151.67,3.11]
[1762518679809,0.26,151.84,151.74,5.9367]
[1762518680009,0.31057577,151.81,151.77,0.04910426]
[1762518680215,0.31057577,151.81,151.77,0.04231225]
[1762518681216,0.05057577,151.81,151.77,0.04231225]
[1762518681411,0.05057577,151.81,151.77,3.15231225]
[1762518682303,0.26,151.9,151.78,3.11]
[1762518682710,92.3022,151.81,151.63,191.8507845]
[1762518682909,5.9362,151.74,151.63,191.8507845]
[1762518683115,2.97,151.79,151.63,5.17052797]
[1762518683310,0.04543376,151.73,151.69,0.04276478]
[1762518683510,0.04543376,151.73,151.67,5.17052797]
[1762518683712,2.97,151.79,151.69,0.04862831]
[1762518684011,0.04382568,151.76,151.72,0.04711104]
[1762518684311,3.02029678,151.76,151.61,286.61106529]
[1762518684513,2.97,151.76,151.69,5.9466]
[1762518684706,2.97,151.74,151.63,5.17052797]
[1762518684907,2.97,151.7,151.58,109.69052797]
[1762518685107,5.17052797,151.8,151.56,5.17052797]
[1762518685108,2.97,151.67,151.56,5.17052797]
[1762518685309,92.325,151.77,151.6,5.22052807]
[1762518685310,0.04350272,151.63,151.6,5.22052807]
[1762518685611,0.04704085,151.63,151.6,5.21890608]
[1762518686417,2.97,151.79,151.6,5.21890608]
[1762518686613,4.91762257,151.79,151.62,92.4646]
[1762518686821,224.9423492,151.92,151.66,5.17052797]
[1762518686822,2.97,151.81,151.66,5.17052797]
[1762518687012,2.97,151.79,151.66,8.28052797]
[1762518687216,7.88762257,151.78,151.66,3.11]
[1762518687419,0.04846664,151.74,151.7,0.04428479]
[1762518687716,3.01846664,151.74,151.7,0.04428479]
[1762518687922,2.97,151.73,151.62,3.11]
[1762518688313,2.97,151.72,151.62,3.11]
[1762518689113,0.04524525,151.69,151.65,0.04904717]
[1762518689519,0.04524525,151.69,151.65,3.15904717]
[1762518690222,0.04524525,151.69,151.67,5.9437]
[1762518690928,0.04524525,151.69,151.65,0.04904717]
[1762518690929,3.01524525,151.69,151.65,0.04904717]
[1762518691419,3.01524525,151.69,151.65,5.99384717]
[1762518691615,3.01524525,151.69,151.65,0.04904717]
[1762518692417,2.97,151.67,151.56,5.17052797]
[1762518692718,2.97,151.67,151.57,3.11]
[1762518693122,2.97,151.67,151.61,5.9459]
[1762518693324,2.97,151.67,151.57,3.11]
[1762518693620,0.04794156,151.64,151.6,3.15952851]
[1762518693918,0.04794156,151.64,151.61,3.11]
[1762518694123,2.97,151.71,151.62,9.0529]
[1762518694615,2.97,151.71,151.63,5.9425]
[1762518694820,2.97,151.71,151.6,5.17052797]
[1762518694821,2.97,151.71,151.6,8.28052797]
[1762518695019,2.97,151.71,151.63,5.9413]
[1762518695222,0.04547158,151.67,151.65,3.11]
[1762518695424,2.97,151.75,151.65,3.11]
[1762518695627,11.94757872,151.81,151.68,0.04712134]
[1762518695628,0.04578035,151.72,151.68,0.04712134]
[1762518695920,0.04578035,151.72,151.68,5.21541382]
[1762518695921,0.04452337,151.72,151.68,5.21541382]
[1762518697012,0.04452337,151.72,151.69,3.11]
[1762518697412,2.257e-05,151.82,151.7,3.11]
[1762518697616,2.97,151.85,151.73,3.11]
[1762518698112,2.97,151.85,151.69,3.11]
[1762518698513,11.94757872,151.89,151.75,0.04373151]
[1762518698514,3.01870073,151.79,151.75,0.04373151]
[1762518698819,3.0136193,151.79,151.75,0.04467148]
[1762518699521,3.14,151.78,151.75,0.04467148]
[1762518699824,3.14,151.78,151.65,21.72]
[1762518700122,3.14,151.77,151.66,3.05]
[1762518700324,3.14,151.77,151.69,3.05]
[1762518700826,0.04554015,151.75,151.71,0.04718883]
[1762518701016,0.04554015,151.75,151.71,5.98798883]
[1762518701214,3.14,151.74,151.63,3.05]
[1762518701419,3.14,151.74,151.59,3.05]
[1762518702023,3.14,151.74,151.57,5.17052797]
[1762518702225,3.18999253,151.67,151.64,0.05000107]
[1762518702525,3.18946763,151.67,151.55,3.05]
[1762518702716,3.14,151.67,151.55,3.05]
[1762518702920,3.14,151.67,151.58,5.17052797]
[1762518703422,0.04610657,151.64,151.61,0.04367863]
[1762518703622,3.18610657,151.64,151.61,0.04367863]
[1762518704031,0.04610657,151.64,151.61,3.09367863]
[1762518704228,0.04610657,151.64,151.61,0.04367863]
[1762518705229,0.04610657,151.64,151.61,3.32367863]
[1762518705832,3.14,151.69,151.61,3.32367863]
[1762518706125,2.97,151.74,151.65,5.17052797]
[1762518706433,7.97207316,151.78,151.65,5.17052797]
[1762518706434,2.97,151.77,151.66,3.28]
[1762518706618,2.97,151.77,151.66,5.17052797]
[1762518706819,2.97,151.72,151.7,0.04758174]
[1762518707023,2.97,151.72,151.62,5.17052797]
[1762518707431,5.98256958,151.73,151.62,5.17052797]
[1762518707432,2.97,151.7,151.62,5.17052797]
[1762518707627,2.97,151.69,151.58,5.17052797]
[1762518707925,2.97,151.69,151.53,69.24]
[1762518707926,2.97,151.67,151.51,1.14777618]
[1762518708128,5.98256958,151.57,151.4,5.17052797]
[1762518708324,8.54256958,151.52,151.4,5.17052797]
[1762518708528,2.56,151.51,151.37,3.28]
[1762518708732,2.56,151.51,151.37,8.45052797]
[1762518708938,2.56,151.5,151.37,5.17052797]
[1762518709129,2.6081153,151.45,151.42,0.04612149]
[1762518709331,2.60537775,151.45,151.42,0.0500544]
[1762518709834,0.04537775,151.45,151.42,0.0500544]
[1762518710230,2.60537775,151.45,151.42,0.0500544]
[1762518710633,0.04537775,151.45,151.42,3.3300544]
[1762518711225,0.04537775,151.45,151.42,0.0500544]
[1762518711631,0.04537775,151.45,151.42,8.50058237]
[1762518712338,2.56,151.53,151.43,3.28]
[1762518712930,2.56,151.53,151.46,5.17052797]
[1762518713136,5.98256958,151.57,151.46,5.17052797]
[1762518713335,0.04906801,151.53,151.5,0.05047436]
[1762518713537,0.04906801,151.53,151.5,8.50100233]
[1762518713837,0.04906801,151.53,151.5,5.22100233]
[1762518714847,2.60906801,151.53,151.5,0.05047436]
[1762518715438,3.92906801,151.53,151.5,0.05047436]
[1762518715641,3.92906801,151.53,151.44,5.17052797]
[1762518715844,2.60906801,151.53,151.44,5.17052797]
[1762518716537,2.60906801,151.53,151.47,0.04474935]
[1762518717344,0.04906801,151.53,151.47,0.04474935]
[1762518718036,2.60906801,151.53,151.47,0.04474935]
[1762518719043,7.46237861,151.53,151.47,0.04474935]
[1762518719242,2.60906801,151.53,151.47,0.04474935]
[1762518720739,0.04906801,151.53,151.49,3.28]
[1762518721347,77.77207316,151.64,151.47,0.04474935]
[1762518721348,2.56,151.63,151.52,12.10204865]
[1762518721647,2.56,151.68,151.59,5.9432]
[1762518721952,2.56,151.68,151.57,3.28]
[1762518722350,0.04889983,151.64,151.61,0.0442478]
[1762518722646,0.04889983,151.64,151.61,3.3242478]
[1762518722842,2.60889983,151.64,151.61,14.80909645]
[1762518723048,2.60889983,151.64,151.61,0.0442478]
[1762518723938,0.04889983,151.64,151.61,0.0442478]
[1762518724658,2.60889983,151.64,151.61,0.0442478]
[1762518725354,0.04889983,151.64,151.61,0.0442478]
[1762518725563,0.04889983,151.64,151.61,3.3242478]